Workbook

Sheet Getting Started
A1: VIAVI Instrument Programming Tool - Getting Started
A3: Note: Option 847 must be installed on the test set for the VIP Tool™ to operate.
A4: To purchase Option 847, please contact a VIAVI Solutions Radio Test Sales Expert with your model and serial number.
A5: Find your closest Radio Test Sales Expert
A7: The VIP Tool™ provides a method to efficiently connect to a VIAVI instrument through an Ethernet socket and control the
A8: instrument using remote commands entered into the Scripts worksheet to control and receive data from the instrument.
A9: The commands can be placed in sequence to build an automated test routine.
A11: Warranties: The Viavi Instrument Programming Tool (“VIP Tool”) is provided “as-is.” There are no warranties, either express,
A12: implied, contractual, or statutory with respect to the merchantability or fitness applicable to the VIP Tool. The user agrees that no
A13: warranty has been expressed or implied by VIAVI and that the user understands that the VIP Tool is being provided “as-is.” The
A14: user hereby expressly waives any claim for incidental or consequential damages, including damages to connected equipment,
A15: from use of the VIP Tool.
A17: VIAVI VIP Tool License Agreement
A19: Table of Contents
A20: Introduction to the VIP Tool
A21: The VIP Tool Ribbon
A22: The Embedded Worksheets
A23: The Report Worksheets
A24: The Setup Worksheet
A25: The Script Worksheet
A26: The Results Data Worksheet
A27: The Trace Data Worksheet
A28: Editing and Executing a Script
A29: VIP Tool Resources
A30: VIAVI RCI Document Resources
A32: Introduction to the VIP Tool
A33: The VIP Tool provides a method to connect to and control a VIAVI instrument through a TCP/IP socket. The VIP Tool allows the
A34: user to create and edit a script that can then be used to programmatically perform automated tasks with the instrument.
A36: A script consists of RCI commands, which control the instrument, and VIAVI Instrument Programming keywords that are used to
A37: control the flow and output of the script.
A39: The VIAVI Instrument Programming Language provides syntax that allows responses from the tool to be sent and easily organized
A40: on a separate sheet within the VIP Tool workbook. An additional output of the VIP Tool is an organized sheet of trace data
A41: generated by the instrument when it is queried for such data. Trace data consists of the data that are used to create the various
A42: graphs displayed on the instrument such as Channel Analyzer, Oscilloscope, Distribution plots, etc.
A44: The VIP Tool currently supports operation with the VIAVI 3900 Series, 8800 Series and 3550 series of radio test sets.
A46: Back to Top
A48: The VIP Tool Ribbon
A49: The VIP Tool Ribbon contains the controls for operating the VIP Tool. The controls that appear on the ribbon are context
A50: specific, depending on which VIP Tool sheet is selected for view. For example, the Script sheet ribbon will contain all of the
A51: controls for creating, editing and debugging scripts. The Setup sheet ribbon will contain controls for setting up a connection to the
A52: instrument and for configuring paths to save and load various types of files. A report sheet ribbon will contain controls for editing
A53: report sheets, such as showing and hiding tags, and for saving the report to PDF or CSV formats.
A55: Back to Top
A57: The Embedded Worksheets
A58: The VIP Tool workbook contains of five embedded worksheets:
A59: 1. This Getting Started sheet.
A60: 2. The Setup worksheet is used to configure the connection to the instrument and set paths for files
A61: 3. The Script worksheet is used for editing and debugging the script.
A62: 4. The Results Data worksheet is used to monitor measurement data.
A63: 5. The Trace Data worksheet is used to store trace data returned from the instrument when a trace query command is executed.
A65: The Report Worksheets
A66: Unlike the embedded worksheets, Report worksheets are not write protected and can be freely edited, deleted and imported.
A67: Report sheets are intended for two functions: creating reports and reserving a sheet to perform Excel calculations used by the
A68: script. When first downloaded, the VIP Tool worksheet contains two report reports sheets - one sheet is named 'Calc' and the
A69: other sheet is named 'Report'. Other sheets can be imported using the Import XLS Sheet button on the Script sheet Tool Ribbon.
A71: Back to Top
A73: The Setup Worksheet
A74: The Setup Worksheet provides the means to configure the connection setup, default paths for various files, and whether a saved
A75: PDF report opens immediately in a local PDF viewer or is saved in the background. The title of test reports and which sheet
A76: will be saved as a report are also configured on the Setup Sheet.
A78: To configure the connection to an instrument, these steps must be followed:
A80: 1. Select the instrument model to connect to from the Select Model dropdown menu.
A81: 2. Enter the IP address of the instrument into the IP field. An example IP address is 10.10.10.104
A82: 3. The port number is automatically selected, based upon the model selected. However, if 39XX is selected as the model, be
A83: sure to check that its port number is set to the port number displayed in the 39XX Port Number field. The 39XX port number
A84: can be set to a different value on the instrument itself. There are instructions for checking the 39XX port number on the
A85: instrument on the Setup sheet.
A87: After entering values in either the IP Address or 39XX Port fields, be sure to press the ENTER key or click outside of the field
A88: to ensure the setting has been entered into the worksheet. Until the settings have been fully entered through this action, the VIP Tool
A89: cannot connect to the instrument.
A91: Once the IP address and Port number are configured, the Check Connection button on the VIP Tool Ribbon can be pressed
A92: to verify that the program is able to communicate with the instrument. If the connection is successful, it is verified by a message
A93: box, and the instrument serial number and software version will be displayed in the Serial Number and Software Version fields
A94: on the Setup worksheet. If, however, the VIP Tool cannot communicate with the instrument, the message "Connection
A95: Unsuccessful" will appear. It may take up to 20 seconds for this message to appear if the VIP Tool cannot succesfully connect
A96: to the instrument.
A99: Back to Top
A101: The Script Worksheet
A102: The Command and Argument Columns
A103: The Script worksheet is used for assembling sequences of commands, queries and keywords into a script, editing the script, and
A104: running the script. It consists of four columns. The number of rows for entering control commands is the maximum number of rows
A105: allowed by Excel.
A107: In general, SCPI RCI commands consist of a command and an argument to the command. As an example, the
A108: command :RF:GENerator:FREQuency 125 MHz consists of the command :RF:GENerator:FREQuency, which denotes what
A109: parameter is to be controlled (in this case, RF generator frequency) and the argument 125 MHz, which provides the value to assign
A110: to the RF generator frequency. The command :RF:GENerator:FREQuency should therefore be placed in the Command
A111: column, and its argument 125 MHz should be placed in the adjacent Argument column on the same row.
A113: An RCI query, which is used to request data from the instrument, may rarely optionally provide argument functionality, but, in general,
A114: no argument is required for a query. To follow the above example, :RF:GENerator:FREQuency? is the matching query to the RF
A115: generator command example; it is requesting the RF generator frequency value. This query has no argument, so
A116: :RF:GENerator:FREQuency? is entered into the command column, and its adjacent Argument row entry is left blank.
A118: Keywords are also entered into the command column. If a keyword requires or supports an argument, then the argument must also
A119: be entered into the argument column.
A121: The Reply Column
A122: In most cases, the Reply column will display all returned data from a query, in the format that it was received. Note that when a query
A123: is executed, the reply from the query, as well as the query command and argument, will also be copied to the Results Data
A124: worksheet. If the reply to the query contains multiple values separated by a comma, the Results Data worksheet will separate each
A125: individual datum into separate columns.
A127: Trace data, which is CSV data returned from a trace query, are not displayed in the Reply column; instead, the number of points or
A128: number of pairs of received trace data will be displayed in the Reply column. The trace data are copied to the Trace Data
A129: worksheet.
A131: Reply data are automatically erased each time a Script or a selected sequence of commands is executed.
A133: The Info Column
A134: The Info column is used to display information about a command, query or keyword executed on a row.
A135: If the instrument reports an error message, or if the program encounters an error, the Error column entry will display the error
A136: message. When the program encounters an error message, it stops execution on the step on which it encountered the error.
A138: Info messages are automatically erased each time a Script or a selected sequence of commands is executed.
A140: Back to Top
A142: The Results Data Worksheet
A143: Measurement reply data are the data returned by a query. On the Script worksheet, the data are recorded in the reply column.
A144: Measurement reply data, with the exception of trace data, are also recorded on the results data sheet. Trace data are a special
A145: category of reply data that are sent to the Trace Data worksheet (discussed below).
A147: Argument data supplied by the info keyword will also be copied to the Results Data worksheet.
A149: Measurement reply data can consist of a single datum, or as several data elements, separated by commas (termed Comma
A150: Separated Values or CSV). One function of the Results Data worksheet is to separate any CSV into separate columns to make
A151: accessing a particular datum in a CSV string an easier process.
A153: The data are separated out into specific columns on the Results Data worksheet:
A155: Column A contains the Date the data were requested from the instrument.
A156: Column B contains the Time the data were requested from the instrument.
A157: Column C contains the query command that was used to access the data.
A158: Column D will contain any argument that was used with the query.
A159: Column E will contain the first received datum. If the reply was a single datum, this will be the only column containing reply data.
A160: If the reply was CSV data, Column E will contain the first datum in the CSV string.
A161: Columns F and onward will each contain a single datum from any received CSV string, in the order of the data in the CSV string.
A163: Following the reply data, Column E will contain the total time the script or selected commands took to complete.
A165: If a trace query was sent, the data in Column E will indicate the number of points or pairs of data received by the trace query.
A166: Some trace data contain additional status byte or fail byte information. If the trace data contain that information, it will appear
A167: on the Results Data worksheet in addition to the number of points information.
A169: Results data are automatically erased each time a Script or a selected sequence of commands is executed.
A171: Back to Top
A173: The Trace Data Worksheet
A174: Trace data are data returned from a specific trace query. Trace data consist of Comma Separated Values (CSV). Trace data can
A175: consist of oscilloscope data, spectrum or channel analyzer data, or data from various graphs such as Distribution or Power Over
A176: Time, as examples.
A178: Trace data consist of two components: X Axis (horizontal) data, which can represent elements such as frequency or time,
A179: depending on the type of trace, and Y Axis (vertical) data, which generally represent some value of amplitude. When trace data are
A180: encountered by the program, the X axis and Y axis data are separated into two separate rows on the Trace Data worksheet. The
A181: "upper" row of a pair of trace data rows will contain the X axis values, and the "lower" row will contain the Y axis values. The trace
A182: data row pairs are separated from preceding or succeeding trace data row pairs by a blank row.
A184: The X axis data are separated into specific columns on the Trace Data worksheet:
A186: Column A contains the Date the trace data were requested from the instrument.
A187: Column B contains the Time the trace data were requested from the instrument.
A188: Column C contains the number of trace data elements returned (and therefore the number of trace data columns on the worksheet).
A189: Column D contains the X axis designation, and horizontal units of the X axis data.
A190: Column E is left blank. This makes it easier to select the trace data with the cntrl-A key combination provided by Excel.
A191: Columns F and higher contain the X axis trace data. The number of columns occupied by data is equal to the value in Column C.
A193: The Y axis data are separated into specific columns on the Trace Data worksheet:
A195: Column A contains the Date the trace data were requested from the instrument.
A196: Column B contains the Time the trace data were requested from the instrument.
A197: Column C contains the query command that was used to access the data.
A198: Column D contains the Y axis designation of the X axis data.
A199: Column E is left blank. This makes it easier to select the trace data with the cntrl-A key combination provided by Excel.
A200: Columns F and higher contain the Y axis trace data. The number of columns occupied by data is equal to number of X data values.
A202: Trace data are automatically erased each time a Script or a selected sequence of commands is executed.
A204: Note that X data are generally returned by most RCI commands. In the event that X data is not available for a specific trace query,
A205: the program calculates the X data and inserts it into the Trace Data worksheet.
A207: In the rare event that X data alone is available through a query, the program ignores the data and does not store it in the Trace Data
A208: worksheet when the query is sent as a commmand. When the Y data query is executed for the function, the program will
A209: automatically send the X data query, and store the X data results with the Y data in the format described above.
A211: Back to Top
A213: Editing and Executing a Script
A214: A script consists of a vertical sequence of RCI commands and program keywords entered into the Argument and Command
A215: of the Script worksheet.
A217: If more than one row of commands/keywords is selected for execution, the program will sequentially execute the commands or
A218: keywords until it reaches the end of the selection, encounters a blank entry in the command column, or encounters the end keyword.
A219: When a query is encountered, the return data will be displayed in the Reply column, and will be copied to the Results Data
A220: worksheet. In the case of a trace data query, the number of points of data will be reported in the reply column and the Results Data
A221: worksheet. Trace data will be copied to the Trace Data worksheet. If the row is 'commented out' by the "/" keyword, the program
A222: will not execute the row and will skip to the next row. If the program encounters an error message it will cease execution at the row
A223: where it encountered the error message.
A225: Note that only a single command can occupy a row. The program does not support concantenated commands. Any
A226: concantenation of multiple single commands on a single row will generate an error and the script will stop at that point.
A228: If a command is placed in the command column without a preceding colon, a preceding colon will automatically be appended to the
A229: command. This does not affect IEE-488 commands such as *OPC or *IDN?, nor will it affect keywords or commands that have
A230: been 'skipped' with the special "/" keyword.
A232: When the Run Script button is pressed, the program will start at row 2 of the command column and begin sequentially executing
A233: the script from that point. This allows a dedicated starting point for any script.
A235: When the Run From Here button is pressed, the program will start at the currently selected row and begin sequentially executing the
A236: the script from that point. This allows the user to test blocks of script without having to select the entire block to execute it, or for
A237: testing blocks of script that are separated from other portions of the script by a blank row or end keyword.
A239: To execute a single command, or a subset of contiguous commands in the script, select the command or subset of commands and
A240: press the Run Selected button. Only the selected command(s) will be executed. Note that if more than one command is selected,
A241: the selected commands must be contiguous.
A243: Pressing the Toggle Comments button will 'comment out' an uncommented row or selection of rows, or 'uncomment' a commented
A244: row or selection of rows. This function automates the placement of the '/' keyword. The program will skip any commented row
A245: and will not execute the command or keyword on that row.
A247: Pressing the Abort Execution button will halt execution of the script at its current position in the script.
A249: To insert one or more rows, press the Insert Rows button.
A251: To delete one or more rows, press the Delete Rows button.
A253: The contents of the Reply column, Info column, Results Data worksheet and Trace Data worksheet will be erased when the Clear
A254: Results button is pressed, or each time a script or selected sequence of commands is executed.
A256: The entire script and all results can be removed by pressing the Remove Script button.
A258: Note: There is no 'undo' function on the Scripts worksheet.
A260: Back to Top
A262: VIP Tool Resources
A263: VIAVI provides a number of resources at our website. On our VIP Tool website, you will find the VIP Tool Operations Manual
A264: which is a complete guide to using this tool, including a complete reference to the VIAVI Intrument Programming Language.
A265: The operations manual provides plenty of examples of using the langugage in the VIP Tool. Also on our VIP Tool website
A266: there are videos, sample scripts, sample reports and more to get you started on your VIP Tool project.
A268: VIP Tool Resources
... 23 more rows

Sheet Setup
H1: Calc | K1: 1234
B2: Select Model: | C2: 39XX | H2: Test Specs
B3: =C2 & " " & "IP Address:" -> 39XX IP Address: | H3: Report
B5: =C2 & " " & "Port Number:" -> 39XX Port Number: | C5: 1234
B8: Serial Number | E8: Test Name
B9: Software Version | E9: Report Sheet | F9: Report
E10: Open PDF Report On Save | G10: Off
B13: After entering settings, press the ENTER key or click outside of the | E13: Report PDF File Path
B14: entry field to complete entry.
B16: The default 39XX Port Number is 1234. If the port number has been | E16: Report CSV File Path
B17: changed from the default value on the instrument, the 39XX Port Number
B18: field on this page must be set to match the port number on the instrument.
E19: Script File Path
B20: Steps To verify the port number on the 39XX instrument:
B22: 1. Press the UTILS key. | E22: Script Module File Path
B23: 2. Select 'Hardware Settings'
B24: 3. Select 'Remote' from the floating menu.
B25: 4. The port number will be displayed in the 'TCP/IP Port' Field on the | E25: Import/Export Sheet Path
B26: Remote menu.

Sheet Script
A1: Command | B1: Argument | C1: Reply | D1: Info Message
A2: #####################################
A3: # This application can perform Analog Radio tests
A4: # in the Analog Duplex, P25, DMR and NXDN systems
A5: #####################################
A6: Sub | B6: Begin
A7: *idn? | B7: [TestUnit]=Reply3
A8: close_socket
A9: # Clear Pass/Fail flags on Audio Response
A10: Select_Cell | B10: (Report_A1)
A11: For | B11: 1 to 8
A12: Copy | B12: " " to (Report_E42:NextRange)
A13: Copy | B13: " " to (Report_I42:NextRange)
A14: Next
A15: # Store Current Test Selections and Radio SN
A16: For | B16: 1 to 10
A17: If | B17: <TS_NextCount>=""
A18: <TS_NextCount>= | B18: "-"
A19: EndIf
A20: [Temp_NextCount]= | B20: <TS_NextCount>
A21: Next
A22: [RadioSN]= | B22: <RadioSN>
A23: For | B23: 1 to 9
A24: If | B24: <CHSEL_NextCount>=""
A25: <CHSEL_NextCount>= | B25: "-"
A26: EndIf
A27: [CHSel_NextCount]= | B27: <CHSEL_NextCount>
A28: Next
A29: # Clear all Tag Values to clear the Report Sheet
A30: Clear_tags
A31: # Restore the saved Test Selections and Radio SN
A32: For | B32: 1 to 10
A33: <TS_NextCount>= | B33: [Temp_NextCount]
A34: Next
A35: Start_Timer_1 | B35: <StartTime>=Reply
A36: <RadioSN>= | B36: [RadioSN]
A37: <TestUnit>= | B37: [TestUnit]
A38: For | B38: 1 to 9
A39: <CHSEL_NextCount>= | B39: [CHSel_NextCount]
A40: Next
A41: # Find the selected Band and Read the Frequencies and specs from the Test Specs Sheet
A42: RunSub | B42: Read_Band_Frequencies
A43: open_socket
A44: # If Run Tests is selected, Execute the selected tests
A45: If | B45: (Report_Q9) = "Run Tests"
A46: Runsub | B46: Perform_Analog_Tests
A47: EndIf
A48: END
A49: EndSub
A51: Sub | B51: Read_Band_Frequencies
A52: [TargetBand]= | B52: (Report_Q6)
A53: Set_Counter1 | B53: 0
A54: for | B54: 1 to 100
A55: [CheckBand]= | B55: (Test Specs_A:nextcount)
A56: Inc_Counter1
A57: If | B57: [CheckBand]=[TargetBand]
A58: [Start]= | B58: Counter1
A59: NextCount | B59: 100
A60: EndIf
A61: next
A62: [Channels]= | B62: (Test Specs_C:Counter1)
A63: [Last]= | B63: [Start]+[Channels]
A64: [Last]= | B64: [Last]-1
A65: Set_Counter1 | B65: 0
A66: for | B66: [Start] to [Last]
A67: Inc_Counter1
A68: NextCount
A69: <RXFreq_Counter1>= | B69: (Test Specs_D:NextCount)
A70: <TXFreq_Counter1>= | B70: (Test Specs_E:NextCount)
A71: [PowerLL_Counter1]= | B71: (Test Specs_H:NextCount)
A72: [PowerUL_Counter1]= | B72: (Test Specs_I:NextCount)
A73: [FreqTolLL_Counter1]= | B73: (Test Specs_J:NextCount)
A74: [FreqTolUL_Counter1]= | B74: (Test Specs_K:NextCount)
A75: [TXDistUL_Counter1]= | B75: (Test Specs_L:NextCount)
A76: [RXDistUL_Counter1]= | B76: (Test Specs_M:NextCount)
A77: [RXSINUL_Counter1]= | B77: (Test Specs_N:NextCount)
A78: [BW_Counter1]= | B78: (Test Specs_O:NextCount)
A79: [RXTestLevel_Counter1]= | B79: (Test Specs_P:NextCount)
A80: [RXMaxAudioLL_Counter1]= | B80: (Test Specs_Q:NextCount)
A81: [CLOffset_Counter1]= | B81: (Test Specs_R:NextCount)
A82: [CHSelMsg_Counter1]= | B82: (Test Specs_S:NextCount)
A83: next
A84: <TXFreqErr>= | B84: <TXFreq_Counter1>
A85: EndSub
A88: # Beginning of Digital Radio Test Script
A89: #
A90: Sub | B90: Perform_Analog_Tests
A91: Start_Timer_1
A92: #Load the Digital system in case it is not loaded
A93: #
A94: [SystemSetting]= | B94: (Report_Q12)
A95: if | B95: [SystemSetting]=P25
A96: [System]= | B96: "P25"
A97: :System:Load | B97: ""P25""
A98: ElseIf | B98: [SystemSetting]=DMR
A99: [System]= | B99: "DMR"
A100: :System:Load | B100: ""DMR""
A101: ElseIf | B101: [SystemSetting]=NXDN
A102: [System]= | B102: "NXDN"
A103: :System:Load | B103: ""NXDN""
A104: ElseIf | B104: [SystemSetting]=Analog Duplex
A105: [System]= | B105: "Analog Duplex"
A106: :System:Load | B106: ""Analog Duplex""
A107: EndIf
A108: #
A109: # Establish initial settings
A110: #
A111: Start_Timer_2
A112: #
A113: RunSub | B113: initial_settings_Analog_Mode
A114: #
A115: [TXTests]= | B115: 0
A116: For | B116: 1 to 6
A117: If | B117: <TS_NextCount>="X"
A118: # There are Transmitter tests to perform
A119: [TXTests]= | B119: 1
A120: EndIf
A121: Next
A122: [RXTests]= | B122: 0
A123: For | B123: 7 to 10
A124: If | B124: <TS_NextCount>="X"
A125: # There are Receiver tests to perform
A126: [RXTests]= | B126: 1
A127: EndIf
A128: Next
A129: Set_Counter2 | B129: 0
A130: [MaxAudioDone]= | B130: 0
A131: [RXRespDone]= | B131: 0
A132: [DevLmtDone]= | B132: 0
A133: [ModSensDone]= | B133: 0
A134: [TXRespDone]= | B134: 0
A135: #
A136: For | B136: 1 to [Channels]
A137: Inc_Counter2
A138: [CHSet]= | B138: 0
A139: #
A140: If | B140: [BW_Counter2]= 12.5
A141: [DevMax]= | B141: 2500
A142: [Dev20]= | B142: 500
A143: [Dev60]= | B143: 1500
A144: Else
A145: [DevMax]= | B145: 5000
A146: [Dev20]= | B146: 1000
A147: [Dev60]= | B147: 3000
A148: EndIf
A149: #
A150: If | B150: [RXTests]=1
A151: #
A152: If | B152: <CHSEL_Counter2>="X"
A153: :Configure:Offset:Generator:Value | B153: [CLOffset_Counter2]
A154: :MOD:Generator:Source1:Enable | B154: 1
A155: :MOD:Generator:Source1:Frequency | B155: 1000 Hz
A156: [Mod_Level]= | B156: [Dev60] / 1000
A157: [RXTestLevel]= | B157: [RXTestLevel_Counter2]
A158: RunSub | B158: Set_Mod_Level
A159: :MOD:Generator:Source1:Shape | B159: Sine
A160: RunSub | B160: RF_Gen_On
A161: [Gen_Frequency]= | B161: <RXFreq_Counter2>
A162: RunSub | B162: Set_Gen_Frequency
A163: RunSub | B163: Scope_To_Audio
A164: RunSub | B164: Measure_Max_Audio
A165: RunSub | B165: Measure_RX_Distortion
A166: RunSub | B166: Measure_RX_SINAD
A167: RunSub | B167: RX_Audio_Response
A168: EndIf
A169: #
A170: EndIf
A171: #
A172: If | B172: [TXTests]=1
A173: #
A174: If | B174: <CHSEL_Counter2>="X"
A175: :Configure:Offset:Analyzer:Value | B175: [CLOffset_Counter2]
A176: RunSub | B176: RF_Gen_Off
A177: :AF:generator:source1:enable | B177: 0
A178: RunSub | B178: Scope_To_Demod
A179: [Rec_Frequency]= | B179: <TXFreq_Counter2>
A180: RunSub | B180: Set_Rec_Frequency
A181: If | B181: [CHSet]=0
A182: RunSub | B182: Wait_For_Transmit
A183: Else
A184: RunSub | B184: Wait_For_Transmit_zone2
A185: EndIf
A186: Delay | B186: 4
A187: RunSub | B187: Measure_TX_Freq_Error
A188: RunSub | B188: Measure_TX_Power
A189: RunSub | B189: Measure_TXMod_Sens
A190: RunSub | B190: Measure_TXDistortion
A191: RunSub | B191: Measure_DevLmt
A192: RunSub | B192: Measure_TXResp
A193: RunSub | B193: Wait_For_No_Transmit
A194: EndIf
A195: #
A196: EndIf
A197: [CHSet]= | B197: 0
A198: #
A199: Next
A200: Stop_Timer_2
A201: Total_Timer_2 | B201: <TestTime>=Reply
A202: #
A203: Pause | B203: Analog Test Complete
... 564 more rows

Sheet Results Data

Sheet Trace Data

Sheet Calc

Sheet Test Specs
A1: CH Plan | B1: Config | C1: CH's | D1: Radio RX | E1: Radio TX | F1: Power Target | G1: Power Tolerance (%) | H1: Power LL | I1: Power UL | J1: Frequency Tol (Hz) LL | K1: Frequency Tol (Hz) UL | L1: TX Distortion (%) | M1: RX Distortion | N1: RX SINAD | O1: BW (kHz) | P1: RX Audio Test Level (V) | Q1: RX Max Audio (V) | R1: Cable Loss | S1: Channel Select Msg
A2: 1 | B2: VHF | C2: 6 | D2: 136.075 | E2: 136.025 | F2: 6.2 | G2: 10 | H2: =F2-(F2*(G2/100)) -> 5.58 | I2: =F2+(F2*(G2/100)) -> 6.82 | J2: -150 | K2: 150 | L2: 10 | M2: 10 | N2: -116 | O2: 12.5 | P2: 1 | Q2: 5 | R2: -0.15 | S2: Select USQ / CH 1
D3: 142.075 | E3: 142.125 | F3: 6.2 | G3: 10 | H3: =F3-(F3*(G3/100)) -> 5.58 | I3: =F3+(F3*(G3/100)) -> 6.82 | J3: -150 | K3: 150 | L3: 10 | M3: 10 | N3: -116 | O3: 12.5 | P3: 1 | Q3: 5 | R3: -0.15 | S3: Select USQ / CH 2
D4: 154.275 | E4: 154.225 | F4: 6.2 | G4: 10 | H4: 5.58 | I4: 6.82 | J4: -150 | K4: 150 | L4: 10 | M4: 10 | N4: -116 | O4: 12.5 | P4: 1 | Q4: 5 | R4: -0.15 | S4: Select USQ / CH 3
D5: 160.175 | E5: 160.125 | F5: 6.2 | G5: 10 | H5: 5.58 | I5: 6.82 | J5: -150 | K5: 150 | L5: 10 | M5: 10 | N5: -116 | O5: 12.5 | P5: 1 | Q5: 5 | R5: -0.15 | S5: Select USQ / CH 4
D6: 168.125 | E6: 168.075 | F6: 6.2 | G6: 10 | H6: 5.58 | I6: 6.82 | J6: -150 | K6: 150 | L6: 10 | M6: 10 | N6: -116 | O6: 12.5 | P6: 1 | Q6: 5 | R6: -0.15 | S6: Select USQ / CH 5
D7: 173.925 | E7: 173.975 | F7: 6.2 | G7: 10 | H7: 5.58 | I7: 6.82 | J7: -150 | K7: 150 | L7: 10 | M7: 10 | N7: -116 | O7: 12.5 | P7: 1 | Q7: 5 | R7: -0.15 | S7: Select USQ / CH 6
A9: 2 | B9: UHF1 | C9: 8 | D9: 380.075 | E9: 380.025 | F9: 5.3 | G9: 10 | H9: =F9-(F9*(G9/100)) -> 4.77 | I9: =F9+(F9*(G9/100)) -> 5.83 | J9: -150 | K9: 150 | L9: 10 | M9: 10 | N9: -116 | O9: 12.5 | P9: 1 | Q9: 5 | R9: -0.31 | S9: Select USQ / CH 1
D10: 395.075 | E10: 395.025 | F10: 5.3 | G10: 10 | H10: 4.77 | I10: 5.83 | J10: -150 | K10: 150 | L10: 10 | M10: 10 | N10: -116 | O10: 12.5 | P10: 1 | Q10: 5 | R10: -0.31 | S10: Select USQ / CH 2
D11: 410.075 | E11: 410.025 | F11: 5.3 | G11: 10 | H11: 4.77 | I11: 5.83 | J11: -150 | K11: 150 | L11: 10 | M11: 10 | N11: -116 | O11: 12.5 | P11: 1 | Q11: 5 | R11: -0.31 | S11: Select USQ / CH 3
D12: 424.975 | E12: 424.925 | F12: 5.3 | G12: 10 | H12: 4.77 | I12: 5.83 | J12: -150 | K12: 150 | L12: 10 | M12: 10 | N12: -116 | O12: 12.5 | P12: 1 | Q12: 5 | R12: -0.31 | S12: Select USQ / CH 4
D13: 425.075 | E13: 425.025 | F13: 5.3 | G13: 10 | H13: 4.77 | I13: 5.83 | J13: -150 | K13: 150 | L13: 10 | M13: 10 | N13: -116 | O13: 12.5 | P13: 1 | Q13: 5 | R13: -0.31 | S13: Select USQ / CH 5
D14: 440.075 | E14: 440.025 | F14: 5.3 | G14: 10 | H14: 4.77 | I14: 5.83 | J14: -150 | K14: 150 | L14: 10 | M14: 10 | N14: -116 | O14: 12.5 | P14: 1 | Q14: 5 | R14: -0.31 | S14: Select USQ / CH 6
D15: 455.375 | E15: 455.325 | F15: 5.3 | G15: 10 | H15: 4.77 | I15: 5.83 | J15: -150 | K15: 150 | L15: 10 | M15: 10 | N15: -116 | O15: 12.5 | P15: 1 | Q15: 5 | R15: -0.31 | S15: Select USQ / CH 7
D16: 469.975 | E16: 469.925 | F16: 5.3 | G16: 10 | H16: 4.77 | I16: 5.83 | J16: -150 | K16: 150 | L16: 10 | M16: 10 | N16: -116 | O16: 12.5 | P16: 1 | Q16: 5 | R16: -0.31 | S16: Select USQ / CH 8
A18: 3 | B18: UHF2 | C18: 8 | D18: 450.075 | E18: 450.025 | F18: 5.3 | G18: 10 | H18: =F18-(F18*(G18/100)) -> 4.77 | I18: =F18+(F18*(G18/100)) -> 5.83 | J18: -150 | K18: 150 | L18: 10 | M18: 10 | N18: -116 | O18: 12.5 | P18: 1 | Q18: 5 | R18: -0.31 | S18: Select USQ / CH 1
D19: 460.075 | E19: 460.025 | F19: 5.3 | G19: 10 | H19: 4.77 | I19: 5.83 | J19: -150 | K19: 150 | L19: 10 | M19: 10 | N19: -116 | O19: 12.5 | P19: 1 | Q19: 5 | R19: -0.31 | S19: Select USQ / CH 2
D20: 471.075 | E20: 471.025 | F20: 5.3 | G20: 10 | H20: 4.77 | I20: 5.83 | J20: -150 | K20: 150 | L20: 10 | M20: 10 | N20: -116 | O20: 12.5 | P20: 1 | Q20: 5 | R20: -0.31 | S20: Select USQ / CH 3
D21: 484.925 | E21: 484.975 | F21: 5.3 | G21: 10 | H21: 4.77 | I21: 5.83 | J21: -150 | K21: 150 | L21: 10 | M21: 10 | N21: -116 | O21: 12.5 | P21: 1 | Q21: 5 | R21: -0.31 | S21: Select USQ / CH 4
D22: 485.075 | E22: 485.025 | F22: 5.3 | G22: 10 | H22: 4.77 | I22: 5.83 | J22: -150 | K22: 150 | L22: 10 | M22: 10 | N22: -116 | O22: 12.5 | P22: 1 | Q22: 5 | R22: -0.31 | S22: Select USQ / CH 5
D23: 495.075 | E23: 495.025 | F23: 5.3 | G23: 10 | H23: 4.77 | I23: 5.83 | J23: -150 | K23: 150 | L23: 10 | M23: 10 | N23: -116 | O23: 12.5 | P23: 1 | Q23: 5 | R23: -0.31 | S23: Select USQ / CH 6
D24: 506.075 | E24: 506.025 | F24: 5.3 | G24: 10 | H24: 4.77 | I24: 5.83 | J24: -150 | K24: 150 | L24: 10 | M24: 10 | N24: -116 | O24: 12.5 | P24: 1 | Q24: 5 | R24: -0.31 | S24: Select USQ / CH 7
D25: 519.925 | E25: 519.975 | F25: 5.3 | G25: 10 | H25: 4.77 | I25: 5.83 | J25: -150 | K25: 150 | L25: 10 | M25: 10 | N25: -116 | O25: 12.5 | P25: 1 | Q25: 5 | R25: -0.31 | S25: Select USQ / CH 8
A27: 4 | B27: 7-800 | C27: 9 | D27: 764.0625 | E27: 764.0125 | F27: 2.6 | G27: 10 | H27: =F27-(F27*(G27/100)) -> 2.34 | I27: =F27+(F27*(G27/100)) -> 2.86 | J27: -250 | K27: 250 | L27: 10 | M27: 10 | N27: -116 | O27: 12.5 | P27: 1 | Q27: 5 | R27: -0.4 | S27: Select USQ / CH 1
D28: 769.0625 | E28: 769.0125 | F28: 2.6 | G28: 10 | H28: 2.34 | I28: 2.86 | J28: -250 | K28: 250 | L28: 10 | M28: 10 | N28: -116 | O28: 12.5 | P28: 1 | Q28: 5 | R28: -0.4 | S28: Select USQ / CH 2
D29: 775.9375 | E29: 775.9875 | F29: 2.6 | G29: 10 | H29: 2.34 | I29: 2.86 | J29: -250 | K29: 250 | L29: 10 | M29: 10 | N29: -116 | O29: 12.5 | P29: 1 | Q29: 5 | R29: -0.4 | S29: Select USQ / CH 3
D30: 851.0625 | E30: 794.0125 | F30: 2.6 | G30: 10 | H30: 2.34 | I30: 2.86 | J30: -250 | K30: 250 | L30: 10 | M30: 10 | N30: -116 | O30: 12.5 | P30: 1 | Q30: 5 | R30: -0.4 | S30: Select USQ / CH 4
D31: 860.0625 | E31: 809.0125 | F31: 3.2 | G31: 10 | H31: 2.88 | I31: 3.52 | J31: -250 | K31: 250 | L31: 10 | M31: 10 | N31: -116 | O31: 12.5 | P31: 1 | Q31: 5 | R31: -0.4 | S31: Select USQ / CH 5
D32: 869.9375 | E32: 823.9875 | F32: 3.2 | G32: 10 | H32: 2.88 | I32: 3.52 | J32: -250 | K32: 250 | L32: 10 | M32: 10 | N32: -116 | O32: 12.5 | P32: 1 | Q32: 5 | R32: -0.4 | S32: Select USQ / CH 6
D33: 851.0625 | E33: 851.0125 | F33: 3.2 | G33: 10 | H33: 2.88 | I33: 3.52 | J33: -250 | K33: 250 | L33: 10 | M33: 10 | N33: -116 | O33: 12.5 | P33: 1 | Q33: 5 | R33: -0.4 | S33: Select USQ / CH 7
D34: 860.0625 | E34: 860.0125 | F34: 3.2 | G34: 10 | H34: 2.88 | I34: 3.52 | J34: -250 | K34: 250 | L34: 10 | M34: 10 | N34: -116 | O34: 12.5 | P34: 1 | Q34: 5 | R34: -0.4 | S34: Select USQ / CH 8
D35: 869.9375 | E35: 869.8875 | F35: 3.2 | G35: 10 | H35: 2.88 | I35: 3.52 | J35: -250 | K35: 250 | L35: 10 | M35: 10 | N35: -116 | O35: 12.5 | P35: 1 | Q35: 5 | R35: -0.4 | S35: Select USQ / CH 9
A37: 5 | B37: Mike DMR | C37: 2 | D37: 403.025 | E37: 403.025 | F37: 4 | G37: 10 | H37: =F37-(F37*(G37/100)) -> 3.6 | I37: =F37+(F37*(G37/100)) -> 4.4 | J37: -150 | K37: 150 | L37: 10 | M37: 10 | N37: -116 | O37: 12.5 | P37: 1 | Q37: 5 | R37: -0.31 | S37: Select Channel 1
D38: 408.025 | E38: 403.025 | F38: 1.2 | G38: 10 | H38: 1.08 | I38: 1.32 | J38: -150 | K38: 150 | L38: 10 | M38: 10 | N38: -116 | O38: 12.5 | P38: 1 | Q38: 5 | R38: -0.31 | S38: Select Channel 3
A40: 6 | B40: Bill DMR | C40: 2 | D40: 467.85 | E40: 467.85 | F40: 1.2 | G40: 10 | H40: =F40-(F40*(G40/100)) -> 1.08 | I40: =F40+(F40*(G40/100)) -> 1.32 | J40: -150 | K40: 150 | L40: 10 | M40: 10 | N40: -116 | O40: 12.5 | P40: 1 | Q40: 5 | R40: -0.31 | S40: Select Channel 7
D41: 465.9 | E41: 470 | F41: 1.2 | G41: 10 | H41: 1.08 | I41: 1.32 | J41: -150 | K41: 150 | L41: 10 | M41: 10 | N41: -116 | O41: 12.5 | P41: 1 | Q41: 5 | R41: -0.31 | S41: Select Channel 9

Sheet Report
C3: FM Analog Radio Test Example | L3: Test Controls
C5: 3920 SN: | M5: Test Menu | Q5: CH Plan
C6: Radio SN: | Q6: 4
C7: Date | D7: =TODAY() -> 2021-03-31 | N7: TX Frequency
C8: Time | N8: TX Power | Q8: Mode
N9: TX Modulation Sensitvity | Q9: Run Tests
C10: TX Frequency | D10: RF Error (Hz) | E10: Status | N10: TX Distortion
N11: TX Deviation Limiting | Q11: System
N12: TX Audio Response | Q12: P25
C13: TX Frequency | D13: TX Power (W) | E13: Status | G13: RX Frequency | H13: RX SINAD (dB) | I13: Status | N13: RX Max Audio
N14: RX Distortion
N15: RX SINAD
N16: RX Audio Response
M19: CH | N19: Include
M20: 1
M21: 2
M22: 3
M23: 4
C24: TX Frequency | D24: TX Distortion (%) | E24: Status | G24: RX Frequency | H24: RX Distortion (%) | I24: Status | M24: 5
M25: 6
M26: 7
M27: 8
M28: 9
L30: Note: Items highlighted in Yellow require user input.
C35: TX Frequency | D35: TX Mod Sens (mV) | E35: Status | G35: RX Frequency | H35: RX Max Audio (V) | I35: Status
C38: TX Frequency | D38: Deviation Limiting (kHz) | E38: Status
C41: TX Audio Response | G41: RX Audio Response
C42: 300 Hz | G42: 300 Hz
C43: 500 Hz | G43: 500 Hz
C44: 750 Hz | G44: 750 Hz
C45: 1000 Hz | G45: 1000 Hz
C46: 1500 Hz | G46: 1500 Hz
C47: 2000 Hz | G47: 2000 Hz
C48: 2500 Hz | G48: 2500 Hz
C49: 3000 Hz | G49: 3000 Hz
C62: Total Test Time
D122: 00:05:22

Sheet Version
A1: Version 1.1.0
A2: 03/17/2021
A4: VIP Tool Version Release Notes are available at the following link:
A5: VIP Tool Resources

Sheet Utils (hidden)
D1: Calc | E1: FALSE | G1: <beginsave> | J1: CALC | M1: TEST SPECS | P1: REPORT
D2: Test Specs | E2: TRUE | G2: <TXFreqErr> | P2: <beginsave> | Q2: 2,2
D3: Report | G3: <TXFreq_1> | P3: <TXFreqErr> | Q3: 11,3
G4: <TXFreq_2> | P4: <TXFreq_1> | Q4: 14,3
G5: <TXFreq_3> | P5: <TXFreq_2> | Q5: 15,3
G6: <TXFreq_4> | P6: <TXFreq_3> | Q6: 16,3
G7: <TXFreq_5> | P7: <TXFreq_4> | Q7: 17,3
G8: <TXFreq_6> | P8: <TXFreq_5> | Q8: 18,3
G9: <TXFreq_7> | P9: <TXFreq_6> | Q9: 19,3
E10: 57975536 | G10: <TXFreq_8> | P10: <TXFreq_7> | Q10: 20,3
G11: <TXFreq_9> | P11: <TXFreq_8> | Q11: 21,3
G12: <ModSensFreq> | P12: <TXFreq_9> | Q12: 22,3
G13: <DevLmtFreq> | P13: <TXFreq_1> | Q13: 25,3
G14: <TestUnit> | P14: <TXFreq_2> | Q14: 26,3
G15: <RadioSN> | P15: <TXFreq_3> | Q15: 27,3
G16: <StartTime> | P16: <TXFreq_4> | Q16: 28,3
G17: <RFError> | P17: <TXFreq_5> | Q17: 29,3
G18: <TXPower_1> | P18: <TXFreq_6> | Q18: 30,3
G19: <TXPower_2> | P19: <TXFreq_7> | Q19: 31,3
E20: 882.3875 | G20: <TXPower_3> | P20: <TXFreq_8> | Q20: 32,3
G21: <TXPower_4> | P21: <TXFreq_9> | Q21: 33,3
G22: <TXPower_5> | P22: <ModSensFreq> | Q22: 36,3
G23: <TXPower_6> | P23: <DevLmtFreq> | Q23: 39,3
G24: <TXPower_7> | P24: <TestUnit> | Q24: 5,4
E25: False | G25: <TXPower_8> | P25: <RadioSN> | Q25: 6,4
E26: False | G26: <TXPower_9> | P26: <StartTime> | Q26: 8,4
G27: <TXDist_1> | P27: <RFError> | Q27: 11,4
G28: <TXDist_2> | P28: <TXPower_1> | Q28: 14,4
G29: <TXDist_3> | P29: <TXPower_2> | Q29: 15,4
E30: False | G30: <TXDist_4> | P30: <TXPower_3> | Q30: 16,4
E31: False | G31: <TXDist_5> | P31: <TXPower_4> | Q31: 17,4
G32: <TXDist_6> | P32: <TXPower_5> | Q32: 18,4
G33: <TXDist_7> | P33: <TXPower_6> | Q33: 19,4
E34: On | G34: <TXDist_8> | P34: <TXPower_7> | Q34: 20,4
E35: Off | G35: <TXDist_9> | P35: <TXPower_8> | Q35: 21,4
G36: <TXModSens> | P36: <TXPower_9> | Q36: 22,4
E37: No | G37: <TXDevLimit> | P37: <TXDist_1> | Q37: 25,4
G38: <TXResp_1> | P38: <TXDist_2> | Q38: 26,4
G39: <TXResp_2> | P39: <TXDist_3> | Q39: 27,4
G40: <TXResp_3> | P40: <TXDist_4> | Q40: 28,4
G41: <TXResp_4> | P41: <TXDist_5> | Q41: 29,4
E42: False | G42: <TXResp_5> | P42: <TXDist_6> | Q42: 30,4
G43: <TXResp_6> | P43: <TXDist_7> | Q43: 31,4
E44: False | G44: <TXResp_7> | P44: <TXDist_8> | Q44: 32,4
G45: <TXResp_8> | P45: <TXDist_9> | Q45: 33,4
G46: <TXFreqStatus> | P46: <TXModSens> | Q46: 36,4
G47: <TXPWRStat_1> | P47: <TXDevLimit> | Q47: 39,4
G48: <TXPWRStat_2> | P48: <TXResp_1> | Q48: 42,4
G49: <TXPWRStat_3> | P49: <TXResp_2> | Q49: 43,4
G50: <TXPWRStat_4> | P50: <TXResp_3> | Q50: 44,4
G51: <TXPWRStat_5> | P51: <TXResp_4> | Q51: 45,4
G52: <TXPWRStat_6> | P52: <TXResp_5> | Q52: 46,4
G53: <TXPWRStat_7> | P53: <TXResp_6> | Q53: 47,4
G54: <TXPWRStat_8> | P54: <TXResp_7> | Q54: 48,4
G55: <TXPWRStat_9> | P55: <TXResp_8> | Q55: 49,4
G56: <TXDistStat_1> | P56: <TXFreqStatus> | Q56: 11,5
G57: <TXDistStat_2> | P57: <TXPWRStat_1> | Q57: 14,5
G58: <TXDistStat_3> | P58: <TXPWRStat_2> | Q58: 15,5
G59: <TXDistStat_4> | P59: <TXPWRStat_3> | Q59: 16,5
G60: <TXDistStat_5> | P60: <TXPWRStat_4> | Q60: 17,5
G61: <TXDistStat_6> | P61: <TXPWRStat_5> | Q61: 18,5
G62: <TXDistStat_7> | P62: <TXPWRStat_6> | Q62: 19,5
G63: <TXDistStat_8> | P63: <TXPWRStat_7> | Q63: 20,5
G64: <TXDistStat_9> | P64: <TXPWRStat_8> | Q64: 21,5
G65: <TXModSensStat> | P65: <TXPWRStat_9> | Q65: 22,5
G66: <TXDevLimitStat> | P66: <TXDistStat_1> | Q66: 25,5
G67: <TestTime> | P67: <TXDistStat_2> | Q67: 26,5
G68: <RXFreq_1> | P68: <TXDistStat_3> | Q68: 27,5
G69: <RXFreq_2> | P69: <TXDistStat_4> | Q69: 28,5
G70: <RXFreq_3> | P70: <TXDistStat_5> | Q70: 29,5
G71: <RXFreq_4> | P71: <TXDistStat_6> | Q71: 30,5
G72: <RXFreq_5> | P72: <TXDistStat_7> | Q72: 31,5
G73: <RXFreq_6> | P73: <TXDistStat_8> | Q73: 32,5
G74: <RXFreq_7> | P74: <TXDistStat_9> | Q74: 33,5
G75: <RXFreq_8> | P75: <TXModSensStat> | Q75: 36,5
G76: <RXFreq_9> | P76: <TXDevLimitStat> | Q76: 39,5
G77: <MaxAudFreq> | P77: <TestTime> | Q77: 62,5
G78: <RXSIN_1> | P78: <RXFreq_1> | Q78: 14,7
G79: <RXSIN_2> | P79: <RXFreq_2> | Q79: 15,7
G80: <RXSIN_3> | P80: <RXFreq_3> | Q80: 16,7
G81: <RXSIN_4> | P81: <RXFreq_4> | Q81: 17,7
G82: <RXSIN_5> | P82: <RXFreq_5> | Q82: 18,7
G83: <RXSIN_6> | P83: <RXFreq_6> | Q83: 19,7
G84: <RXSIN_7> | P84: <RXFreq_7> | Q84: 20,7
G85: <RXSIN_8> | P85: <RXFreq_8> | Q85: 21,7
G86: <RXSIN_9> | P86: <RXFreq_9> | Q86: 22,7
G87: <RXDist_1> | P87: <RXFreq_1> | Q87: 25,7
G88: <RXDist_2> | P88: <RXFreq_2> | Q88: 26,7
G89: <RXDist_3> | P89: <RXFreq_3> | Q89: 27,7
G90: <RXDist_4> | P90: <RXFreq_4> | Q90: 28,7
G91: <RXDist_5> | P91: <RXFreq_5> | Q91: 29,7
G92: <RXDist_6> | P92: <RXFreq_6> | Q92: 30,7
G93: <RXDist_7> | P93: <RXFreq_7> | Q93: 31,7
G94: <RXDist_8> | P94: <RXFreq_8> | Q94: 32,7
G95: <RXDist_9> | P95: <RXFreq_9> | Q95: 33,7
G96: <RXMaxAudio> | P96: <MaxAudFreq> | Q96: 36,7
G97: <RXResp_1> | P97: <RXSIN_1> | Q97: 14,8
G98: <RXResp_2> | P98: <RXSIN_2> | Q98: 15,8
G99: <RXResp_3> | P99: <RXSIN_3> | Q99: 16,8
G100: <RXResp_4> | P100: <RXSIN_4> | Q100: 17,8
G101: <RXResp_5> | P101: <RXSIN_5> | Q101: 18,8
G102: <RXResp_6> | P102: <RXSIN_6> | Q102: 19,8
G103: <RXResp_7> | P103: <RXSIN_7> | Q103: 20,8
G104: <RXResp_8> | P104: <RXSIN_8> | Q104: 21,8
G105: <RXSINStat_1> | P105: <RXSIN_9> | Q105: 22,8
G106: <RXSINStat_2> | P106: <RXDist_1> | Q106: 25,8
G107: <RXSINStat_3> | P107: <RXDist_2> | Q107: 26,8
G108: <RXSINStat_4> | P108: <RXDist_3> | Q108: 27,8
G109: <RXSINStat_5> | P109: <RXDist_4> | Q109: 28,8
G110: <RXSINStat_6> | P110: <RXDist_5> | Q110: 29,8
G111: <RXSINStat_7> | P111: <RXDist_6> | Q111: 30,8
G112: <RXSINStat_8> | P112: <RXDist_7> | Q112: 31,8
G113: <RXSINStat_9> | P113: <RXDist_8> | Q113: 32,8
G114: <RXDistStat_1> | P114: <RXDist_9> | Q114: 33,8
G115: <RXDistStat_2> | P115: <RXMaxAudio> | Q115: 36,8
G116: <RXDistStat_3> | P116: <RXResp_1> | Q116: 42,8
G117: <RXDistStat_4> | P117: <RXResp_2> | Q117: 43,8
G118: <RXDistStat_5> | P118: <RXResp_3> | Q118: 44,8
G119: <RXDistStat_6> | P119: <RXResp_4> | Q119: 45,8
G120: <RXDistStat_7> | P120: <RXResp_5> | Q120: 46,8
G121: <RXDistStat_8> | P121: <RXResp_6> | Q121: 47,8
G122: <RXDistStat_9> | P122: <RXResp_7> | Q122: 48,8
G123: <RXMaxAudioStat> | P123: <RXResp_8> | Q123: 49,8
G124: <endsave> | P124: <RXSINStat_1> | Q124: 14,9
G125: <TS_1> | P125: <RXSINStat_2> | Q125: 15,9
G126: <TS_2> | P126: <RXSINStat_3> | Q126: 16,9
G127: <Ts_3> | P127: <RXSINStat_4> | Q127: 17,9
G128: <TS_4> | P128: <RXSINStat_5> | Q128: 18,9
G129: <TS_5> | P129: <RXSINStat_6> | Q129: 19,9
G130: <TS_6> | P130: <RXSINStat_7> | Q130: 20,9
G131: <TS_7> | P131: <RXSINStat_8> | Q131: 21,9
G132: <TS_8> | P132: <RXSINStat_9> | Q132: 22,9
G133: <TS_9> | P133: <RXDistStat_1> | Q133: 25,9
G134: <TS_10> | P134: <RXDistStat_2> | Q134: 26,9
G135: <CHSEL_1> | P135: <RXDistStat_3> | Q135: 27,9
G136: <CHSEL_2> | P136: <RXDistStat_4> | Q136: 28,9
G137: <CHSEL_3> | P137: <RXDistStat_5> | Q137: 29,9
G138: <CHSEL_4> | P138: <RXDistStat_6> | Q138: 30,9
G139: <CHSEL_5> | P139: <RXDistStat_7> | Q139: 31,9
G140: <CHSEL_6> | P140: <RXDistStat_8> | Q140: 32,9
G141: <CHSEL_7> | P141: <RXDistStat_9> | Q141: 33,9
G142: <CHSEL_8> | P142: <RXMaxAudioStat> | Q142: 36,9
G143: <CHSEL_9> | P143: <endsave> | Q143: 63,10
P144: <TS_1> | Q144: 7,13
P145: <TS_2> | Q145: 8,13
P146: <Ts_3> | Q146: 9,13
P147: <TS_4> | Q147: 10,13
P148: <TS_5> | Q148: 11,13
P149: <TS_6> | Q149: 12,13
P150: <TS_7> | Q150: 13,13
P151: <TS_8> | Q151: 14,13
P152: <TS_9> | Q152: 15,13
P153: <TS_10> | Q153: 16,13
P154: <CHSEL_1> | Q154: 20,14
P155: <CHSEL_2> | Q155: 21,14
P156: <CHSEL_3> | Q156: 22,14
P157: <CHSEL_4> | Q157: 23,14
P158: <CHSEL_5> | Q158: 24,14
P159: <CHSEL_6> | Q159: 25,14
P160: <CHSEL_7> | Q160: 26,14
P161: <CHSEL_8> | Q161: 27,14
P162: <CHSEL_9> | Q162: 28,14
